[Event "*** Titled Tuesday Blitz"]
[Site "Chess.com"]
[Date "2020.04.14"]
[Round "5"]
[White "124chess"]
[Black "Gareth-Bale11"]
[Result "1-0"]
[WhiteElo "2635"]
[BlackElo "2800"]
[TimeControl "180+1"]
[EndTime "10:51:53 PDT"]
[Termination "124chess won on time"]

1. d4 {[%clk 0:02:59.9]} 1... Nf6 {[%clk 0:02:59.5]} 2. c4 {[%clk 0:03:00]} 2...
e6 {[%clk 0:02:59.6]} 3. Nc3 {[%clk 0:03:00.5]} 3... Bb4 {[%clk 0:02:59.2]} 4.
Qb3 {[%clk 0:03:01.1]} 4... a5 {[%clk 0:02:49.8]} 5. a3 {[%clk 0:03:00.4]} 5...
a4 {[%clk 0:02:48.3]} 6. Qc2 {[%clk 0:02:59.4]} 6... Bxc3+ {[%clk 0:02:48.2]} 7.
bxc3 {[%clk 0:03:00]} 7... d6 {[%clk 0:02:44.6]} 8. e4 {[%clk 0:03:00]} 8... Nc6
{[%clk 0:02:43.4]} 9. Bd3 {[%clk 0:02:58.1]} 9... b6 {[%clk 0:02:42.4]} 10. f4
{[%clk 0:02:45]} 10... e5 {[%clk 0:02:42.2]} 11. Nf3 {[%clk 0:02:42.7]} 11...
Qe7 {[%clk 0:02:35.5]} 12. O-O {[%clk 0:02:40.7]} 12... h6 {[%clk 0:02:29.9]}
13. Kh1 {[%clk 0:02:16.5]} 13... Bd7 {[%clk 0:02:10.6]} 14. Qf2 {[%clk
0:02:10.6]} 14... Bg4 {[%clk 0:01:24.2]} 15. fxe5 {[%clk 0:02:01.3]} 15... dxe5
{[%clk 0:01:22.4]} 16. d5 {[%clk 0:01:38]} 16... Na5 {[%clk 0:01:20.1]} 17. Be3
{[%clk 0:01:32.7]} 17... Nb3 {[%clk 0:01:14]} 18. Ra2 {[%clk 0:01:32.1]} 18...
Bc8 {[%clk 0:01:00.2]} 19. Qg3 {[%clk 0:01:23.1]} 19... O-O {[%clk 0:00:29]} 20.
Qxe5 {[%clk 0:00:37.5]} 20... Qxe5 {[%clk 0:00:24.4]} 21. Nxe5 {[%clk
0:00:38.4]} 21... Re8 {[%clk 0:00:24.5]} 22. Bd4 {[%clk 0:00:38.6]} 22... Nc5
{[%clk 0:00:20.5]} 23. Bxc5 {[%clk 0:00:24.8]} 23... bxc5 {[%clk 0:00:21.4]} 24.
Nc6 {[%clk 0:00:20.6]} 24... Nxe4 {[%clk 0:00:21.5]} 25. Re2 {[%clk 0:00:21.1]}
25... Nd6 {[%clk 0:00:12.8]} 26. Rxe8+ {[%clk 0:00:15.3]} 26... Nxe8 {[%clk
0:00:13.7]} 27. Re1 {[%clk 0:00:15.9]} 27... Bd7 {[%clk 0:00:12.2]} 28. Ne5
{[%clk 0:00:14]} 28... Bc8 {[%clk 0:00:09.3]} 29. Nc6 {[%clk 0:00:14]} 29... Kf8
{[%clk 0:00:07.2]} 30. Re7 {[%clk 0:00:13.2]} 30... Ra6 {[%clk 0:00:07]} 31. Re1
{[%clk 0:00:12.7]} 31... Rb6 {[%clk 0:00:06]} 32. Bc2 {[%clk 0:00:11.7]} 32...
Nd6 {[%clk 0:00:05]} 33. Ne5 {[%clk 0:00:10.9]} 33... Rb2 {[%clk 0:00:01.8]} 34.
Bxa4 {[%clk 0:00:10.7]} 34... g6 {[%clk 0:00:02.1]} 35. h3 {[%clk 0:00:10.2]}
35... Ra2 {[%clk 0:00:02.1]} 36. Bd7 {[%clk 0:00:09.4]} 36... Ba6 {[%clk
0:00:02.2]} 37. Bb5 {[%clk 0:00:08.8]} 37... Nxb5 {[%clk 0:00:02.4]} 38. cxb5
{[%clk 0:00:09.7]} 38... Bxb5 {[%clk 0:00:02.7]} 39. c4 {[%clk 0:00:09.9]} 39...
Ba4 {[%clk 0:00:02.7]} 40. Re3 {[%clk 0:00:10.1]} 40... Kg7 {[%clk 0:00:02.4]}
41. Nf3 {[%clk 0:00:08.9]} 41... g5 {[%clk 0:00:02.4]} 42. Re7 {[%clk
0:00:08.9]} 42... Kf6 {[%clk 0:00:02.2]} 43. Rxc7 {[%clk 0:00:09.1]} 43... Rxa3
{[%clk 0:00:02.3]} 44. Rxc5 {[%clk 0:00:09.3]} 44... Bc2 {[%clk 0:00:03]} 45.
Kh2 {[%clk 0:00:09.4]} 45... Be4 {[%clk 0:00:02.8]} 46. Kg3 {[%clk 0:00:09.7]}
46... Ra2 {[%clk 0:00:02.8]} 47. Rc6+ {[%clk 0:00:09.9]} 47... Kg7 {[%clk
0:00:03.2]} 48. Rc7 {[%clk 0:00:09.5]} 48... Kg6 {[%clk 0:00:03.4]} 49. d6
{[%clk 0:00:09.8]} 49... h5 {[%clk 0:00:03.4]} 50. h4 {[%clk 0:00:08.9]} 50...
g4 {[%clk 0:00:02.7]} 51. Nd4 {[%clk 0:00:08.2]} 51... Rxg2+ {[%clk 0:00:02]}
52. Kf4 {[%clk 0:00:08.6]} 1-0

[Event "*** Titled Tuesday Blitz"]
[Site "Chess.com"]
[Date "2020.04.14"]
[Round "5"]
[White "Gabix_94"]
[Black "ftorodent"]
[Result "1-0"]
[WhiteElo "2867"]
[BlackElo "2676"]
[TimeControl "180+1"]
[EndTime "10:51:55 PDT"]
[Termination "Gabix_94 won on time"]

1. d4 {[%clk 0:03:00.5]} 1... d5 {[%clk 0:02:59.4]} 2. c4 {[%clk 0:03:00.8]}
2... e6 {[%clk 0:02:59.5]} 3. Nc3 {[%clk 0:03:01]} 3... Be7 {[%clk 0:02:59.7]}
4. Nf3 {[%clk 0:03:01.5]} 4... Nf6 {[%clk 0:02:59.2]} 5. Bf4 {[%clk 0:03:01.8]}
5... O-O {[%clk 0:02:58.8]} 6. e3 {[%clk 0:03:01.7]} 6... Nbd7 {[%clk
0:02:58.9]} 7. Qc2 {[%clk 0:02:57.1]} 7... c5 {[%clk 0:02:50.4]} 8. dxc5 {[%clk
0:02:58]} 8... Nxc5 {[%clk 0:02:49.1]} 9. Be2 {[%clk 0:02:49.6]} 9... dxc4
{[%clk 0:02:32.4]} 10. Bxc4 {[%clk 0:02:50.5]} 10... a6 {[%clk 0:02:32.4]} 11.
Rd1 {[%clk 0:02:48.1]} 11... Qe8 {[%clk 0:02:15.5]} 12. O-O {[%clk 0:02:42]}
12... b5 {[%clk 0:02:14.9]} 13. Be2 {[%clk 0:02:42.6]} 13... Bb7 {[%clk
0:02:14.5]} 14. a3 {[%clk 0:02:27.1]} 14... Rc8 {[%clk 0:02:10.4]} 15. Qb1
{[%clk 0:02:25.7]} 15... Nfe4 {[%clk 0:02:03.3]} 16. Na2 {[%clk 0:02:14.7]}
16... f6 {[%clk 0:01:58.3]} 17. Nb4 {[%clk 0:02:07.1]} 17... e5 {[%clk
0:01:46.3]} 18. Bg3 {[%clk 0:02:05.9]} 18... Qf7 {[%clk 0:01:41.5]} 19. Rfe1
{[%clk 0:01:46]} 19... Nxg3 {[%clk 0:01:34.7]} 20. hxg3 {[%clk 0:01:43.1]} 20...
Be4 {[%clk 0:01:26.7]} 21. Qa2 {[%clk 0:01:16.2]} 21... Qxa2 {[%clk 0:01:16.3]}
22. Nxa2 {[%clk 0:01:17.1]} 22... Bc2 {[%clk 0:01:10.4]} 23. Rd2 {[%clk
0:01:13.1]} 23... Nb3 {[%clk 0:01:07.6]} 24. Rd7 {[%clk 0:01:12.4]} 24... Kf7
{[%clk 0:01:07.8]} 25. Nb4 {[%clk 0:01:09.3]} 25... Ke6 {[%clk 0:00:53.8]} 26.
Ra7 {[%clk 0:01:06.5]} 26... Bxb4 {[%clk 0:00:53.3]} 27. axb4 {[%clk 0:01:00]}
27... Ra8 {[%clk 0:00:37.4]} 28. Rxg7 {[%clk 0:00:59.4]} 28... Rg8 {[%clk
0:00:37.4]} 29. Rc7 {[%clk 0:00:52.7]} 29... Rgc8 {[%clk 0:00:37]} 30. Rxc8
{[%clk 0:00:50]} 30... Rxc8 {[%clk 0:00:36.6]} 31. Nh4 {[%clk 0:00:49.6]} 31...
Rd8 {[%clk 0:00:29.4]} 32. Bf3 {[%clk 0:00:38]} 32... e4 {[%clk 0:00:19.7]} 33.
Bg4+ {[%clk 0:00:37.8]} 33... Ke5 {[%clk 0:00:19.9]} 34. f4+ {[%clk 0:00:33.2]}
34... exf3 {[%clk 0:00:19.3]} 35. Nxf3+ {[%clk 0:00:32.8]} 35... Kd6 {[%clk
0:00:17.9]} 36. Kf2 {[%clk 0:00:32.4]} 36... Rg8 {[%clk 0:00:15.3]} 37. Bh3
{[%clk 0:00:24.9]} 37... a5 {[%clk 0:00:14]} 38. bxa5 {[%clk 0:00:24.4]} 38...
Nxa5 {[%clk 0:00:14.2]} 39. Nd4 {[%clk 0:00:24]} 39... Ba4 {[%clk 0:00:13.6]}
40. Be6 {[%clk 0:00:20.2]} 40... Re8 {[%clk 0:00:11.4]} 41. b3 {[%clk
0:00:20.7]} 41... Rxe6 {[%clk 0:00:10.2]} 42. bxa4 {[%clk 0:00:21.2]} 42... Re5
{[%clk 0:00:08.8]} 43. axb5 {[%clk 0:00:21.5]} 43... Nc4 {[%clk 0:00:08.9]} 44.
Re2 {[%clk 0:00:19]} 44... Kc5 {[%clk 0:00:08.9]} 45. g4 {[%clk 0:00:19.2]}
45... Re4 {[%clk 0:00:08.3]} 46. Kf3 {[%clk 0:00:16.3]} 46... Re7 {[%clk
0:00:08]} 47. g3 {[%clk 0:00:15.1]} 47... Ne5+ {[%clk 0:00:07.8]} 48. Kf4 {[%clk
0:00:15.7]} 48... Nd3+ {[%clk 0:00:05.6]} 49. Kf5 {[%clk 0:00:15.9]} 49... Rd7
{[%clk 0:00:03.8]} 50. Rc2+ {[%clk 0:00:15.6]} 50... Kb4 {[%clk 0:00:02.1]} 51.
b6 {[%clk 0:00:15.7]} 51... Rb7 {[%clk 0:00:02.1]} 52. Rc6 {[%clk 0:00:13.8]}
52... Ne5 {[%clk 0:00:01.7]} 53. Rxf6 {[%clk 0:00:14.1]} 53... Nc4 {[%clk
0:00:02.3]} 54. Nc6+ {[%clk 0:00:13.9]} 54... Kc3 {[%clk 0:00:02.1]} 55. Ne5
{[%clk 0:00:12.9]} 55... Nxe3+ {[%clk 0:00:01.8]} 56. Ke4 {[%clk 0:00:13.3]} 1-0

[Event "*** Titled Tuesday Blitz"]
[Site "Chess.com"]
[Date "2020.04.14"]
[Round "5"]
[White "kleopl"]
[Black "wnstop"]
[Result "0-1"]
[WhiteElo "2390"]
[BlackElo "2582"]
[TimeControl "180+1"]
[EndTime "10:51:56 PDT"]
[Termination "wnstop won by resignation"]

1. c4 {[%clk 0:03:00.9]} 1... e5 {[%clk 0:02:59.7]} 2. Nc3 {[%clk 0:03:00.3]}
2... Bb4 {[%clk 0:02:57.9]} 3. Nd5 {[%clk 0:02:59.3]} 3... Be7 {[%clk
0:02:56.2]} 4. Nf3 {[%clk 0:02:56]} 4... d6 {[%clk 0:02:55.5]} 5. d4 {[%clk
0:02:53.6]} 5... c6 {[%clk 0:02:53.8]} 6. Nc3 {[%clk 0:02:52.5]} 6... Nd7 {[%clk
0:02:52.9]} 7. e4 {[%clk 0:02:51.2]} 7... Ngf6 {[%clk 0:02:52.9]} 8. Be2 {[%clk
0:02:48.6]} 8... O-O {[%clk 0:02:52.4]} 9. O-O {[%clk 0:02:48.3]} 9... a6 {[%clk
0:02:49.8]} 10. a4 {[%clk 0:02:47.2]} 10... a5 {[%clk 0:02:49.1]} 11. h3 {[%clk
0:02:41]} 11... Qe8 {[%clk 0:02:47]} 12. Re1 {[%clk 0:02:38.3]} 12... Bd8 {[%clk
0:02:46.8]} 13. Bf1 {[%clk 0:02:36.6]} 13... Bb6 {[%clk 0:02:45]} 14. Be3 {[%clk
0:02:27.7]} 14... Qe7 {[%clk 0:02:43.4]} 15. b3 {[%clk 0:02:16]} 15... Re8
{[%clk 0:02:36.5]} 16. Qc2 {[%clk 0:02:08.4]} 16... Nh5 {[%clk 0:02:13.5]} 17.
Rad1 {[%clk 0:02:02.9]} 17... h6 {[%clk 0:02:10.9]} 18. Qd2 {[%clk 0:01:46.8]}
18... Qf6 {[%clk 0:02:07.1]} 19. Be2 {[%clk 0:01:31]} 19... Nf4 {[%clk
0:01:41.4]} 20. Bxf4 {[%clk 0:01:28.5]} 20... exf4 {[%clk 0:01:41.1]} 21. Nh2
{[%clk 0:01:22.8]} 21... Nf8 {[%clk 0:01:37.2]} 22. Bg4 {[%clk 0:01:18.7]} 22...
Ne6 {[%clk 0:01:33.2]} 23. Ne2 {[%clk 0:01:16]} 23... g5 {[%clk 0:01:26.7]} 24.
Bxe6 {[%clk 0:01:08.7]} 24... Bxe6 {[%clk 0:01:26.5]} 25. f3 {[%clk 0:01:05.8]}
25... h5 {[%clk 0:01:25.3]} 26. h4 {[%clk 0:00:57.9]} 26... g4 {[%clk 0:01:22]}
27. Qxf4 {[%clk 0:00:54.3]} 27... Qxh4 {[%clk 0:01:16.1]} 28. Ng3 {[%clk
0:00:35.3]} 28... Rad8 {[%clk 0:00:55.2]} 29. Nhf1 {[%clk 0:00:34.9]} 29... f6
{[%clk 0:00:43.7]} 30. Qh6 {[%clk 0:00:23.3]} 30... Re7 {[%clk 0:00:21]} 31.
Qxh5 {[%clk 0:00:19.8]} 31... Qxh5 {[%clk 0:00:20.9]} 32. Nxh5 {[%clk
0:00:20.7]} 32... gxf3 {[%clk 0:00:21.2]} 33. gxf3 {[%clk 0:00:18.7]} 33... Kf7
{[%clk 0:00:21.4]} 34. Kf2 {[%clk 0:00:18]} 34... Rh8 {[%clk 0:00:21.3]} 35.
Nhg3 {[%clk 0:00:17.9]} 35... Ree8 {[%clk 0:00:19.6]} 36. Ke3 {[%clk 0:00:17.9]}
36... Rh3 {[%clk 0:00:18.6]} 37. Re2 {[%clk 0:00:17.6]} 37... Rg8 {[%clk
0:00:17.2]} 38. Rg2 {[%clk 0:00:16.7]} 38... d5 {[%clk 0:00:17.4]} 39. cxd5
{[%clk 0:00:15.1]} 39... cxd5 {[%clk 0:00:18.3]} 40. Rc1 {[%clk 0:00:13.5]}
40... dxe4 {[%clk 0:00:17.2]} 41. Kxe4 {[%clk 0:00:10]} 41... Rd8 {[%clk
0:00:16.3]} 42. Rd1 {[%clk 0:00:06.4]} 42... Bxb3 {[%clk 0:00:15.5]} 43. Rdd2
{[%clk 0:00:05]} 43... Bc4 {[%clk 0:00:14.2]} 44. Ne3 {[%clk 0:00:04.3]} 44...
Re8+ {[%clk 0:00:14.2]} 45. Kf4 {[%clk 0:00:04.5]} 45... Bc7+ {[%clk 0:00:14.5]}
46. Kg4 {[%clk 0:00:04.7]} 46... Rxg3+ {[%clk 0:00:12.4]} 47. Rxg3 {[%clk
0:00:05]} 47... Rxe3 {[%clk 0:00:12.8]} 48. Rc2 {[%clk 0:00:04.9]} 48... Be6+
{[%clk 0:00:12.5]} 49. Kh4 {[%clk 0:00:04]} 49... Bxg3+ {[%clk 0:00:12.9]} 50.
Kxg3 {[%clk 0:00:04.9]} 50... Bd5 {[%clk 0:00:11.9]} 51. Rc7+ {[%clk 0:00:04.6]}
51... Ke6 {[%clk 0:00:12.2]} 52. Kf4 {[%clk 0:00:04.5]} 52... Rxf3+ {[%clk
0:00:12.4]} 53. Kg4 {[%clk 0:00:05.4]} 53... Ra3 {[%clk 0:00:13.3]} 0-1

[Event "*** Titled Tuesday Blitz"]
[Site "Chess.com"]
[Date "2020.04.14"]
[Round "5"]
[White "crescentmoon2411"]
[Black "okriak"]
[Result "0-1"]
[WhiteElo "2898"]
[BlackElo "2803"]
[TimeControl "180+1"]
[EndTime "10:51:59 PDT"]
[Termination "okriak won on time"]

1. e4 {[%clk 0:02:58.4]} 1... e5 {[%clk 0:02:59.7]} 2. Nf3 {[%clk 0:02:58.4]}
2... Nc6 {[%clk 0:03:00.2]} 3. Bb5 {[%clk 0:02:58.5]} 3... a6 {[%clk 0:03:00]}
4. Bxc6 {[%clk 0:02:58.8]} 4... dxc6 {[%clk 0:02:59.8]} 5. d4 {[%clk 0:02:59.3]}
5... exd4 {[%clk 0:02:58.9]} 6. Qxd4 {[%clk 0:03:00.2]} 6... Qxd4 {[%clk
0:02:57.8]} 7. Nxd4 {[%clk 0:03:01.1]} 7... Bd7 {[%clk 0:02:58.2]} 8. Nc3 {[%clk
0:03:00.8]} 8... O-O-O {[%clk 0:02:58]} 9. Bf4 {[%clk 0:03:00.3]} 9... Bb4
{[%clk 0:02:53.7]} 10. Ne2 {[%clk 0:03:00.4]} 10... Ne7 {[%clk 0:02:51.5]} 11.
O-O-O {[%clk 0:02:58.9]} 11... Ng6 {[%clk 0:02:50.9]} 12. Bg3 {[%clk 0:02:59]}
12... h5 {[%clk 0:02:49.1]} 13. h4 {[%clk 0:02:56.4]} 13... Rhe8 {[%clk
0:02:47.7]} 14. a3 {[%clk 0:02:53.9]} 14... Bf8 {[%clk 0:02:41.7]} 15. Nd4
{[%clk 0:02:41.5]} 15... Ne5 {[%clk 0:02:26.2]} 16. f3 {[%clk 0:02:31]} 16... g6
{[%clk 0:02:25.9]} 17. Bf4 {[%clk 0:02:26.5]} 17... Bg7 {[%clk 0:02:24.9]} 18.
Bg5 {[%clk 0:02:15.1]} 18... f6 {[%clk 0:02:23.9]} 19. Bf4 {[%clk 0:02:15.4]}
19... Bf8 {[%clk 0:02:19.9]} 20. Nde2 {[%clk 0:01:53.7]} 20... b6 {[%clk
0:02:13.2]} 21. a4 {[%clk 0:01:49.5]} 21... a5 {[%clk 0:02:10]} 22. b3 {[%clk
0:01:48.4]} 22... Bb4 {[%clk 0:02:07.5]} 23. Kb2 {[%clk 0:01:45.8]} 23... Bd6
{[%clk 0:02:03.3]} 24. Nb1 {[%clk 0:01:34.6]} 24... Kb7 {[%clk 0:01:56.4]} 25.
Nbc3 {[%clk 0:01:12.2]} 25... Be6 {[%clk 0:01:54.5]} 26. Be3 {[%clk 0:01:00]}
26... Bf7 {[%clk 0:01:49.2]} 27. Rd2 {[%clk 0:00:56.3]} 27... Bb4 {[%clk
0:01:44.8]} 28. Rhd1 {[%clk 0:00:55]} 28... Rxd2 {[%clk 0:01:43.6]} 29. Bxd2
{[%clk 0:00:54.4]} 29... Bd6 {[%clk 0:01:36.1]} 30. Nc1 {[%clk 0:00:48.5]} 30...
Rg8 {[%clk 0:01:28.5]} 31. N3e2 {[%clk 0:00:47.7]} 31... g5 {[%clk 0:01:26.9]}
32. hxg5 {[%clk 0:00:37.1]} 32... fxg5 {[%clk 0:01:22.7]} 33. Nd4 {[%clk
0:00:28.1]} 33... h4 {[%clk 0:01:21.7]} 34. Rh1 {[%clk 0:00:26.1]} 34... Nd7
{[%clk 0:01:06.1]} 35. Nce2 {[%clk 0:00:25.3]} 35... Nf6 {[%clk 0:00:59.8]} 36.
Bc3 {[%clk 0:00:24.2]} 36... Nh5 {[%clk 0:00:59]} 37. Nf5 {[%clk 0:00:24.3]}
37... Bf8 {[%clk 0:00:49.3]} 38. Be5 {[%clk 0:00:20.6]} 38... Be6 {[%clk
0:00:46.4]} 39. Rd1 {[%clk 0:00:17.7]} 39... Kc8 {[%clk 0:00:44.8]} 40. Kc1
{[%clk 0:00:15.6]} 40... g4 {[%clk 0:00:37.9]} 41. Nxh4 {[%clk 0:00:11.1]} 41...
Be7 {[%clk 0:00:37.3]} 42. Nf5 {[%clk 0:00:10.8]} 42... Bxf5 {[%clk 0:00:37.4]}
43. exf5 {[%clk 0:00:10.8]} 43... gxf3 {[%clk 0:00:37.8]} 44. gxf3 {[%clk
0:00:11.7]} 44... Rf8 {[%clk 0:00:37.8]} 45. Nd4 {[%clk 0:00:11.8]} 45... c5
{[%clk 0:00:35.1]} 46. Nc6 {[%clk 0:00:11.6]} 46... Bg5+ {[%clk 0:00:33]} 47.
Kb1 {[%clk 0:00:07.6]} 47... Rxf5 {[%clk 0:00:31.8]} 48. f4 {[%clk 0:00:05.6]}
48... Nxf4 {[%clk 0:00:29.8]} 49. Bxf4 {[%clk 0:00:02.7]} 49... Rxf4 {[%clk
0:00:29.7]} 50. Ne5 {[%clk 0:00:03]} 50... Bf6 {[%clk 0:00:27.4]} 51. Nc4 {[%clk
0:00:03.4]} 51... Kb7 {[%clk 0:00:26]} 52. Re1 {[%clk 0:00:03]} 52... Bc3 {[%clk
0:00:24.6]} 53. Rd1 {[%clk 0:00:03.3]} 53... c6 {[%clk 0:00:20.9]} 54. Nd6+
{[%clk 0:00:03.1]} 54... Ka6 {[%clk 0:00:18.4]} 55. Nc4 {[%clk 0:00:03.4]} 55...
b5 {[%clk 0:00:18.3]} 56. Nb2 {[%clk 0:00:03.5]} 56... Kb6 {[%clk 0:00:17]} 57.
Rh1 {[%clk 0:00:02.4]} 57... c4 {[%clk 0:00:16.6]} 0-1

[Event "*** Titled Tuesday Blitz"]
[Site "Chess.com"]
[Date "2020.04.14"]
[Round "5"]
[White "Tjktiger"]
[Black "Faqade"]
[Result "1-0"]
[WhiteElo "2832"]
[BlackElo "2636"]
[TimeControl "180+1"]
[EndTime "10:51:59 PDT"]
[Termination "Tjktiger won on time"]

1. c4 {[%clk 0:03:00.4]} 1... Nf6 {[%clk 0:02:58.8]} 2. Nc3 {[%clk 0:03:00.6]}
2... g6 {[%clk 0:02:58.9]} 3. g3 {[%clk 0:03:00.8]} 3... Bg7 {[%clk 0:02:58.7]}
4. Bg2 {[%clk 0:03:01.3]} 4... O-O {[%clk 0:02:58.7]} 5. d4 {[%clk 0:03:01.8]}
5... d6 {[%clk 0:02:58.9]} 6. Nf3 {[%clk 0:03:02.3]} 6... Nc6 {[%clk 0:02:59.3]}
7. O-O {[%clk 0:03:02.7]} 7... e5 {[%clk 0:02:59.9]} 8. dxe5 {[%clk 0:03:02.9]}
8... Nxe5 {[%clk 0:03:00.2]} 9. b3 {[%clk 0:03:02.8]} 9... Nxf3+ {[%clk
0:03:00.1]} 10. Bxf3 {[%clk 0:03:03.1]} 10... Bh3 {[%clk 0:03:00.7]} 11. Re1
{[%clk 0:03:03.1]} 11... c6 {[%clk 0:03:01.1]} 12. Be3 {[%clk 0:03:02.9]} 12...
Re8 {[%clk 0:02:50.4]} 13. Bd4 {[%clk 0:03:02.8]} 13... Qe7 {[%clk 0:02:48.6]}
14. Qd2 {[%clk 0:03:02.8]} 14... h5 {[%clk 0:02:30]} 15. Rad1 {[%clk 0:02:59.3]}
15... h4 {[%clk 0:02:19.2]} 16. gxh4 {[%clk 0:02:51.1]} 16... Rad8 {[%clk
0:01:46.4]} 17. Qg5 {[%clk 0:02:47.6]} 17... Bf5 {[%clk 0:01:36.7]} 18. e4
{[%clk 0:02:39]} 18... Be6 {[%clk 0:01:32.5]} 19. Kh1 {[%clk 0:02:23.9]} 19...
c5 {[%clk 0:01:23]} 20. Be3 {[%clk 0:02:23.2]} 20... Nh7 {[%clk 0:01:13.8]} 21.
Qxe7 {[%clk 0:02:21.6]} 21... Rxe7 {[%clk 0:01:14.7]} 22. Nd5 {[%clk 0:02:21.9]}
22... Bxd5 {[%clk 0:01:14.1]} 23. exd5 {[%clk 0:02:15]} 23... Bf6 {[%clk
0:00:49.7]} 24. h5 {[%clk 0:02:11.1]} 24... Bg5 {[%clk 0:00:49.6]} 25. hxg6
{[%clk 0:02:05.6]} 25... fxg6 {[%clk 0:00:50.5]} 26. Bxg5 {[%clk 0:02:02.7]}
26... Rxe1+ {[%clk 0:00:50.1]} 27. Rxe1 {[%clk 0:02:03.6]} 27... Nxg5 {[%clk
0:00:49.9]} 28. Bg4 {[%clk 0:02:04.1]} 28... Kf7 {[%clk 0:00:47.3]} 29. f4
{[%clk 0:01:48]} 29... Nh7 {[%clk 0:00:46.4]} 30. f5 {[%clk 0:01:25.8]} 30...
Nf6 {[%clk 0:00:45.7]} 31. fxg6+ {[%clk 0:01:24.4]} 31... Kxg6 {[%clk
0:00:46.6]} 32. Be6 {[%clk 0:01:23.1]} 32... Nh5 {[%clk 0:00:41.6]} 33. Rf1
{[%clk 0:01:21.7]} 33... Ng7 {[%clk 0:00:32.6]} 34. Bf7+ {[%clk 0:01:19.4]}
34... Kg5 {[%clk 0:00:29.3]} 35. Rg1+ {[%clk 0:01:01.5]} 35... Kf6 {[%clk
0:00:27.8]} 36. Bg6 {[%clk 0:01:01.7]} 36... Ke5 {[%clk 0:00:20.4]} 37. Kg2
{[%clk 0:00:54.5]} 37... Rf8 {[%clk 0:00:15.5]} 38. Re1+ {[%clk 0:00:51.6]}
38... Kf6 {[%clk 0:00:14.5]} 39. Rf1+ {[%clk 0:00:50.7]} 39... Ke7 {[%clk
0:00:14.9]} 40. Re1+ {[%clk 0:00:29.8]} 40... Kd7 {[%clk 0:00:13.9]} 41. h4
{[%clk 0:00:23.8]} 41... Nf5 {[%clk 0:00:12.7]} 42. Bxf5+ {[%clk 0:00:18.7]}
42... Rxf5 {[%clk 0:00:11.9]} 43. Kg3 {[%clk 0:00:19.1]} 43... a6 {[%clk
0:00:11.4]} 44. Re2 {[%clk 0:00:13.4]} 44... b5 {[%clk 0:00:10.9]} 45. Kg4
{[%clk 0:00:13.3]} 45... Rf1 {[%clk 0:00:10.8]} 46. h5 {[%clk 0:00:12.9]} 46...
bxc4 {[%clk 0:00:09.7]} 47. bxc4 {[%clk 0:00:13.8]} 47... Rc1 {[%clk 0:00:09.5]}
48. Re4 {[%clk 0:00:13.7]} 48... Ra1 {[%clk 0:00:07]} 49. h6 {[%clk 0:00:11.8]}
49... Rxa2 {[%clk 0:00:07.1]} 50. Kg5 {[%clk 0:00:11.6]} 50... Rg2+ {[%clk
0:00:03.7]} 51. Kf6 {[%clk 0:00:10.2]} 51... Rh2 {[%clk 0:00:02.9]} 52. Re7+
{[%clk 0:00:07.2]} 52... Kd8 {[%clk 0:00:02.5]} 53. Rh7 {[%clk 0:00:07.1]} 53...
a5 {[%clk 0:00:02.3]} 54. Ke6 {[%clk 0:00:07.4]} 1-0

[Event "*** Titled Tuesday Blitz"]
[Site "Chess.com"]
[Date "2020.04.14"]
[Round "5"]
[White "HrvojeZagreb"]
[Black "Sunnika"]
[Result "1/2-1/2"]
[WhiteElo "2196"]
[BlackElo "2350"]
[TimeControl "180+1"]
[EndTime "10:51:59 PDT"]
[Termination "Game drawn - insufficient material"]

1. d4 {[%clk 0:03:00.9]} 1... Nf6 {[%clk 0:03:00.9]} 2. Bf4 {[%clk 0:03:00.2]}
2... c5 {[%clk 0:03:00.5]} 3. e3 {[%clk 0:02:59.8]} 3... Qb6 {[%clk 0:02:59.5]}
4. Na3 {[%clk 0:02:58.3]} 4... d6 {[%clk 0:02:46.2]} 5. Nc4 {[%clk 0:02:56.9]}
5... Qc7 {[%clk 0:02:41.7]} 6. a4 {[%clk 0:02:51.8]} 6... g6 {[%clk 0:02:39.3]}
7. c3 {[%clk 0:02:47.6]} 7... Bg7 {[%clk 0:02:39.7]} 8. h3 {[%clk 0:02:47]} 8...
O-O {[%clk 0:02:39]} 9. Nf3 {[%clk 0:02:46.8]} 9... Nbd7 {[%clk 0:02:36.5]} 10.
Be2 {[%clk 0:02:44.5]} 10... b6 {[%clk 0:02:34.9]} 11. O-O {[%clk 0:02:37.4]}
11... Bb7 {[%clk 0:02:34.5]} 12. Nfd2 {[%clk 0:02:21.7]} 12... a6 {[%clk
0:02:17.8]} 13. Bf3 {[%clk 0:02:17.1]} 13... b5 {[%clk 0:01:57.2]} 14. axb5
{[%clk 0:02:12]} 14... axb5 {[%clk 0:01:58.1]} 15. Rxa8 {[%clk 0:02:09.4]} 15...
Rxa8 {[%clk 0:01:59]} 16. Na3 {[%clk 0:02:09]} 16... Qb6 {[%clk 0:01:51.4]} 17.
Bxb7 {[%clk 0:01:59.1]} 17... Qxb7 {[%clk 0:01:52.3]} 18. Qb3 {[%clk 0:01:58.6]}
18... Rb8 {[%clk 0:01:45]} 19. Bh2 {[%clk 0:01:45.8]} 19... c4 {[%clk
0:01:35.2]} 20. Qa2 {[%clk 0:01:36.3]} 20... Ra8 {[%clk 0:01:32.6]} 21. Qb1
{[%clk 0:01:31.8]} 21... d5 {[%clk 0:01:27.8]} 22. Re1 {[%clk 0:01:28.4]} 22...
b4 {[%clk 0:01:22.3]} 23. cxb4 {[%clk 0:01:19.6]} 23... Qxb4 {[%clk 0:01:23.2]}
24. Nf3 {[%clk 0:00:28.7]} 24... c3 {[%clk 0:01:15.6]} 25. Nc2 {[%clk
0:00:15.3]} 25... Qxb2 {[%clk 0:01:14.5]} 26. Qxb2 {[%clk 0:00:15.1]} 26... cxb2
{[%clk 0:01:14.1]} 27. Rb1 {[%clk 0:00:15]} 27... Ra2 {[%clk 0:01:01.1]} 28.
Nfe1 {[%clk 0:00:12.5]} 28... Ne4 {[%clk 0:00:52.8]} 29. Nd3 {[%clk 0:00:12.7]}
29... Nb6 {[%clk 0:00:21.8]} 30. Rxb2 {[%clk 0:00:12.5]} 30... Rxb2 {[%clk
0:00:19.5]} 31. Nxb2 {[%clk 0:00:13.4]} 31... Nc4 {[%clk 0:00:19]} 32. Nxc4
{[%clk 0:00:13.3]} 32... dxc4 {[%clk 0:00:19]} 33. f3 {[%clk 0:00:14]} 33... Nd6
{[%clk 0:00:15.6]} 34. Kf1 {[%clk 0:00:13.9]} 34... Nb5 {[%clk 0:00:14.1]} 35.
Ke2 {[%clk 0:00:13.8]} 35... e6 {[%clk 0:00:14.1]} 36. Be5 {[%clk 0:00:13.2]}
36... Bf8 {[%clk 0:00:13.9]} 37. Kd2 {[%clk 0:00:11.4]} 37... Be7 {[%clk
0:00:12.1]} 38. e4 {[%clk 0:00:11.2]} 38... f6 {[%clk 0:00:12]} 39. Bf4 {[%clk
0:00:11.5]} 39... Kf7 {[%clk 0:00:11.1]} 40. Be3 {[%clk 0:00:11.7]} 40... Ke8
{[%clk 0:00:09.8]} 41. Bf2 {[%clk 0:00:11.8]} 41... Kd7 {[%clk 0:00:09.8]} 42.
Ne3 {[%clk 0:00:12.2]} 42... Bb4+ {[%clk 0:00:08.6]} 43. Kd1 {[%clk 0:00:11]}
43... c3 {[%clk 0:00:06.5]} 44. Nc2 {[%clk 0:00:11.1]} 44... Ba5 {[%clk
0:00:05.9]} 45. Ke2 {[%clk 0:00:11.4]} 45... Kc6 {[%clk 0:00:04.7]} 46. Kd3
{[%clk 0:00:11.6]} 46... f5 {[%clk 0:00:04.3]} 47. Be1 {[%clk 0:00:11.5]} 47...
h5 {[%clk 0:00:02.9]} 48. g4 {[%clk 0:00:11.1]} 48... fxe4+ {[%clk 0:00:02.6]}
49. fxe4 {[%clk 0:00:11.5]} 49... hxg4 {[%clk 0:00:03]} 50. hxg4 {[%clk
0:00:12.4]} 50... Nd6 {[%clk 0:00:03.2]} 51. Bxc3 {[%clk 0:00:11.5]} 51... Bxc3
{[%clk 0:00:02.7]} 52. Kxc3 {[%clk 0:00:12.4]} 52... Nxe4+ {[%clk 0:00:03.1]}
53. Kd3 {[%clk 0:00:12.8]} 53... Nf2+ {[%clk 0:00:03.2]} 54. Kc4 {[%clk
0:00:11.9]} 54... Nxg4 {[%clk 0:00:03.7]} 55. Nb4+ {[%clk 0:00:12.2]} 55... Kd6
{[%clk 0:00:03.7]} 56. Nd3 {[%clk 0:00:11.1]} 56... Nf6 {[%clk 0:00:04.2]} 57.
Ne5 {[%clk 0:00:11]} 57... g5 {[%clk 0:00:04.6]} 58. Nf7+ {[%clk 0:00:11]} 58...
Ke7 {[%clk 0:00:05]} 59. Nxg5 {[%clk 0:00:11.9]} 59... Kd6 {[%clk 0:00:05.1]}
60. Nxe6 {[%clk 0:00:12.1]} 60... Kxe6 {[%clk 0:00:05.3]} 61. d5+ {[%clk
0:00:12.7]} 61... Nxd5 {[%clk 0:00:04.7]} 1/2-1/2